fUST/lending_fUST_20240824
["ID","MTS","AMOUNT","RATE_DAILY","PERIOD"]
[335813198,1724505045746,-500.0,0.00013698,2]
[335813199,1724505045755,-500.0,0.00013698,2]
[335813200,1724505045765,-500.0,0.00013698,2]
[335813201,1724505045775,-684.62,0.00013698,2]
[335813202,1724505045784,-500.0,0.00013698,2]
[335813203,1724505045935,-1032.86,0.00013698,2]
[335813204,1724505045966,-500.0,0.00013698,2]
[335813205,1724505045976,-500.0,0.00013698,2]
[335813206,1724505045985,-500.0,0.00013698,2]
[335813207,1724505045994,-500.0,0.00013698,2]
[335813208,1724505046003,-989.99,0.00013698,2]
[335813209,1724505046013,-500.0,0.00013698,2]
[335813210,1724505046023,-500.0,0.00013698,2]
[335813211,1724505046033,-611.59,0.00013698,2]
[335813212,1724505046047,-443.15499385,0.00013698,2]
[335813213,1724505046056,-500.0,0.00013698,2]
[335813214,1724505046066,-500.0,0.00013698,2]
[335813216,1724505046075,-524.03413021,0.00013698,2]
[335813218,1724505046085,-500.0,0.00013698,2]
[335813220,1724505046095,-500.0,0.00013698,2]
[335813222,1724505046104,-546.66878442,0.00013698,2]
[335813224,1724505046113,-500.0,0.00013698,2]
[335813226,1724505046123,-500.0,0.00013698,2]
[335813228,1724505046135,-500.0,0.00013698,2]
[335813230,1724505046145,-715.5,0.00013698,2]
[335813232,1724505046154,-500.0,0.00013698,2]
[335813234,1724505046164,-539.45,0.00013698,2]
[335813236,1724505046174,-810.51,0.00013698,2]
[335813238,1724505046183,-1175.95,0.00013698,2]
[335813240,1724505046192,-500.0,0.00013698,2]
[335813242,1724505046202,-388.01515087,0.00013698,2]
[335813244,1724505046211,-500.0,0.00013698,2]
[335813245,1724505046220,-500.0,0.00013698,2]
[335813246,1724505046229,-564.49,0.00013698,2]
[335813248,1724505046238,-500.0,0.00013698,2]
[335813250,1724505046248,-1449.01,0.00013698,2]
[335813251,1724505046258,-1466.17,0.00013698,2]
[335813252,1724505046267,-500.0,0.00013698,2]
[335813253,1724505046276,-500.0,0.00013698,2]
[335813254,1724505046286,-500.0,0.00013698,2]
[335813256,1724505046296,-500.0,0.00013698,2]
[335813258,1724505046308,-500.0,0.00013698,2]
[335813259,1724505046318,-500.0,0.00013698,2]
[335813260,1724505046329,-1800.6,0.00013698,2]
[335813261,1724505046340,-1210.89,0.00013698,2]
[335813262,1724505046351,-500.0,0.00013698,2]
[335813264,1724505046362,-500.0,0.00013698,2]
[335813267,1724505046372,-500.0,0.00013698,2]
[335813268,1724505046381,-500.0,0.00013698,2]
[335813270,1724505046391,-586.88,0.00013698,2]
[335813272,1724505046400,-586.88,0.00013698,2]
[335813275,1724505046410,-586.88,0.00013698,2]
[335813277,1724505046419,-586.88,0.00013698,2]
[335813278,1724505046428,-1068.57,0.00013698,2]
[335813280,1724505046438,-586.88,0.00013698,2]
[335813283,1724505046462,-533.75,0.00013698,2]
[335813285,1724505046471,-586.88,0.00013698,2]
[335813287,1724505046481,-586.88,0.00013698,2]
[335813289,1724505046494,-586.88,0.00013698,2]
[335813291,1724505046503,-586.88,0.00013698,2]
[335813293,1724505046512,-557.72,0.00013698,2]
[335813295,1724505046522,-586.88,0.00013698,2]
[335813297,1724505046531,-586.88,0.00013698,2]
[335813299,1724505046539,-586.88,0.00013698,2]
[335813301,1724505046548,-586.88,0.00013698,2]
[335813303,1724505046557,-500.0,0.00013698,2]
[335813305,1724505046566,-500.0,0.00013698,2]
[335813307,1724505046575,-586.88,0.00013698,2]
[335813309,1724505046585,-586.88,0.00013698,2]
[335813311,1724505046594,-586.88,0.00013698,2]
[335813313,1724505046603,-12506.1,0.00013698,2]
[335813315,1724505046613,-586.88,0.00013698,2]
[335813317,1724505046622,-586.88,0.00013698,2]
[335813319,1724505046631,-586.88,0.00013698,2]
[335813321,1724505046642,-586.88,0.00013698,2]
[335813323,1724505046651,-586.88,0.00013698,2]
[335813325,1724505046660,-586.88,0.00013698,2]
[335813326,1724505046670,-586.88,0.00013698,2]
[335813328,1724505046679,-500.0,0.00013698,2]
[335813331,1724505046690,-586.92833301,0.00013698,2]
[335813332,1724505046699,-311.69,0.00013698,2]
[335813334,1724505046708,-500.0,0.00013698,2]
[335813336,1724505046717,-500.0,0.00013698,2]
[335813338,1724505046727,-500.0,0.00013698,2]
[335813340,1724505046736,-1665.55,0.00013698,2]
[335813341,1724505046745,-500.0,0.00013698,2]
[335813343,1724505046755,-500.77864388,0.00013698,2]
[335813345,1724505046764,-1964.25,0.00013698,2]
[335813346,1724505046773,-500.0,0.00013698,2]
[335813347,1724505046782,-500.0,0.00013698,2]
[335813348,1724505046791,-500.0,0.00013698,2]
[335813349,1724505046800,-500.0,0.00013698,2]
[335813350,1724505046810,-500.0,0.00013698,2]
[335813351,1724505046819,-1958.82,0.00013698,2]
[335813352,1724505046829,-500.0,0.00013698,2]
[335813353,1724505046839,-500.0,0.00013698,2]
[335813354,1724505046848,-528.3863952,0.00013698,2]
[335813355,1724505046858,-500.0,0.00013698,2]
[335813356,1724505046867,-826.3,0.00013698,2]
[335813357,1724505046877,-500.0,0.00013698,2]
[335813358,1724505046886,-503.6339414,0.00013698,2]
[335813359,1724505046895,-500.0,0.00013698,2]
[335813360,1724505046904,-1141.02,0.00013698,2]
[335813361,1724505046914,-1152.35,0.00013698,2]
[335813362,1724505046924,-501.77925544,0.00013698,2]
[335813363,1724505046933,-500.0,0.00013698,2]
[335813364,1724505046947,-500.0,0.00013698,2]
[335813365,1724505046956,-500.0,0.00013698,2]
[335813366,1724505046971,-6830.25,0.00013698,2]
[335813367,1724505046980,-567.57,0.00013698,2]
[335813368,1724505046989,-500.0,0.00013698,2]
[335813369,1724505046998,-2265.97,0.00013698,2]
[335813370,1724505047007,-500.0,0.00013698,2]
[335813371,1724505047016,-501.19065018,0.00013698,2]
[335813372,1724505047026,-1000.0,0.00013698,2]
[335813373,1724505047036,-500.0,0.00013698,2]
[335813374,1724505047047,-500.0,0.00013698,2]
[335813375,1724505047056,-507.26586184,0.00013698,2]
[335813376,1724505047066,-500.0,0.00013698,2]
[335813377,1724505047075,-1693.4,0.00013698,2]
[335813378,1724505047085,-500.0,0.00013698,2]
[335813379,1724505047094,-500.0,0.00013698,2]
[335813380,1724505047103,-1693.4,0.00013698,2]
[335813381,1724505047114,-1693.4,0.00013698,2]
[335813382,1724505047124,-500.0,0.00013698,2]
[335813383,1724505047134,-1693.4,0.00013698,2]
[335813384,1724505047143,-500.0,0.00013698,2]
[335813385,1724505047153,-1693.4,0.00013698,2]
[335813386,1724505047162,-500.0,0.00013698,2]
[335813387,1724505047171,-1693.4,0.00013698,2]
[335813388,1724505047181,-500.0,0.00013698,2]
[335813389,1724505047195,-1693.4,0.00013698,2]
[335813390,1724505047212,-500.0,0.00013698,2]
[335813391,1724505047222,-1693.4,0.00013698,2]
[335813392,1724505047233,-500.0,0.00013698,2]
[335813393,1724505047242,-1693.4,0.00013698,2]
[335813394,1724505047251,-500.0,0.00013698,2]
[335813395,1724505047261,-1693.4,0.00013698,2]
[335813396,1724505047270,-508.02996767,0.00013698,2]
[335813397,1724505047280,-1693.4,0.00013698,2]
[335813398,1724505047291,-500.0,0.00013698,2]
[335813399,1724505047301,-500.0,0.00013698,2]
[335813400,1724505047310,-1693.4,0.00013698,2]
[335813401,1724505047320,-500.0,0.00013698,2]
[335813402,1724505047330,-500.0,0.00013698,2]
[335813403,1724505047339,-500.0,0.00013698,2]
[335813404,1724505047348,-1693.4,0.00013698,2]
[335813405,1724505047357,-500.0,0.00013698,2]
[335813406,1724505047367,-500.0,0.00013698,2]
[335813407,1724505047376,-1693.4,0.00013698,2]
[335813408,1724505047385,-500.0,0.00013698,2]
[335813409,1724505047395,-1693.4,0.00013698,2]
[335813410,1724505047405,-500.0,0.00013698,2]
[335813411,1724505047415,-1693.4,0.00013698,2]
[335813412,1724505047424,-362.26165918,0.00013698,2]
[335813413,1724505047434,-1693.4,0.00013698,2]
[335813414,1724505047450,-500.0,0.00013698,2]
[335813415,1724505047460,-1693.4,0.00013698,2]
[335813416,1724505047470,-500.0,0.00013698,2]
[335813417,1724505047480,-1693.4,0.00013698,2]
[335813418,1724505047489,-1693.4,0.00013698,2]
[335813419,1724505047498,-1175.05,0.00013698,2]
[335813420,1724505047507,-1693.4,0.00013698,2]
[335813421,1724505047517,-1693.4,0.00013698,2]
[335813422,1724505047526,-1693.4,0.00013698,2]
[335813423,1724505047536,-1693.47748857,0.00013698,2]
[335813424,1724505047545,-2019.18,0.00013698,2]
[335813425,1724505047554,-515.18274963,0.00013698,2]
[335813426,1724505047565,-501.58971639,0.00013698,2]
[335813427,1724505047573,-3569.12,0.00013698,2]
[335813428,1724505047582,-3461.89,0.00013698,2]
[335813429,1724505047592,-500.0,0.00013698,2]
[335813430,1724505047601,-1692.62,0.00013698,2]
[335813431,1724505047610,-500.0,0.00013698,2]
[335813432,1724505047619,-500.0,0.00013698,2]
[335813433,1724505047628,-529.51635192,0.00013698,2]
[335813434,1724505047638,-613.98,0.00013698,2]
[335813435,1724505047647,-500.0,0.00013698,2]
[335813436,1724505047657,-500.0,0.00013698,2]
[335813437,1724505047665,-950.9,0.00013698,2]
[335813438,1724505047675,-500.0,0.00013698,2]
[335813439,1724505047684,-2022.3,0.00013698,2]
[335813440,1724505047694,-500.0,0.00013698,2]
[335813441,1724505047704,-597.64,0.00013698,2]
[335813442,1724505047713,-500.0,0.00013698,2]
[335813443,1724505047722,-500.0,0.00013698,2]
[335813444,1724505047732,-583.45,0.00013698,2]
[335813445,1724505047742,-500.0,0.00013698,2]
[335813446,1724505047752,-2081.41,0.00013698,2]
[335813447,1724505047761,-1158.22,0.00013698,2]
[335813448,1724505047770,-500.28146077,0.00013698,2]
[335813449,1724505047779,-500.0,0.00013698,2]
[335813450,1724505047789,-500.0,0.00013698,2]
[335813451,1724505047798,-8325.25,0.00013698,2]
[335813452,1724505047808,-500.0,0.00013698,2]
[335813453,1724505047818,-145.15959784,0.00013698,2]
[335813454,1724505048380,-355.61999886,0.00013698,2]
[335813455,1724505048390,-500.0,0.00013698,2]
[335813456,1724505048399,-500.0,0.00013698,2]
[335813457,1724505048409,-1950.131562,0.00013698,2]
[335813458,1724505048418,-1950.131562,0.00013698,2]
[335813459,1724505048428,-1950.131562,0.00013698,2]
[335813460,1724505048437,-1950.131562,0.00013698,2]
[335813461,1724505048459,-1950.131562,0.00013698,2]
[335813462,1724505048469,-3617.37,0.00013698,2]
[335813463,1724505048478,-500.0,0.00013698,2]
[335813464,1724505048489,-3166.92,0.00013698,2]
[335813465,1724505048499,-958.1,0.00013698,2]
[335813466,1724505048510,-1950.131562,0.00013698,2]
[335813467,1724505048520,-1950.131562,0.00013698,2]
[335813468,1724505048531,-5555.03,0.00013698,2]
[335813469,1724505048542,-1950.131562,0.00013698,2]
[335813470,1724505048553,-500.0,0.00013698,2]
[335813471,1724505048562,-1950.131562,0.00013698,2]
[335813472,1724505048571,-1950.131562,0.00013698,2]
[335813473,1724505048580,-500.0,0.00013698,2]
[335813474,1724505048590,-500.0,0.00013698,2]
[335813475,1724505048599,-586.53658666,0.00013698,2]
[335813476,1724505048609,-500.10404157,0.00013698,2]
[335813477,1724505048618,-3251.95,0.00013698,2]
[335813478,1724505048628,-293.91923949,0.00013698,2]
[335813479,1724505048637,-655.44,0.00013698,2]
[335813480,1724505048646,-501.23695272,0.00013698,2]
[335813481,1724505048655,-500.0,0.00013698,2]
[335813482,1724505048664,-501.33843151,0.00013698,2]
[335813483,1724505048675,-768.49,0.00013698,2]
[335813484,1724505048685,-511.44324203,0.00013698,2]
[335813485,1724505048697,-645.9,0.00013698,2]
[335813486,1724505048707,-10530.69,0.00013698,2]
[335813487,1724505048716,-500.0,0.00013698,2]
[335813488,1724505048726,-868.78,0.00013698,2]
[335813489,1724505048735,-500.0,0.00013698,2]
[335813490,1724505048745,-500.0,0.00013698,2]
[335813491,1724505048754,-500.0,0.00013698,2]
[335813492,1724505048764,-500.0,0.00013698,2]
[335813493,1724505048774,-8533.15,0.00013698,2]
[335813494,1724505048784,-500.0,0.00013698,2]
[335813495,1724505048793,-896.17,0.00013698,2]
[335813496,1724505048802,-502.22111403,0.00013698,2]
[335813497,1724505048812,-500.0,0.00013698,2]
[335813498,1724505048824,-632.28,0.00013698,2]
[335813499,1724505048834,-500.0,0.00013698,2]
[335813500,1724505048844,-500.0,0.00013698,2]
[335813501,1724505048854,-702.94,0.00013698,2]
[335813502,1724505048864,-656.67,0.00013698,2]
[335813503,1724505048874,-543.41771865,0.00013698,2]
[335813504,1724505048883,-500.0,0.00013698,2]
[335813505,1724505048892,-500.0,0.00013698,2]
[335813506,1724505048901,-500.0,0.00013698,2]
[335813507,1724505048911,-500.0,0.00013698,2]
[335813508,1724505048921,-500.0,0.00013698,2]
[335813509,1724505048931,-500.0,0.00013698,2]
[335813510,1724505048944,-500.0,0.00013698,2]
[335813511,1724505048954,-500.0,0.00013698,2]
[335813512,1724505048964,-500.0,0.00013698,2]
[335813513,1724505048974,-500.0,0.00013698,2]
[335813514,1724505048984,-21073.62,0.00013698,2]
[335813515,1724505048993,-500.0,0.00013698,2]
[335813516,1724505049003,-261.93418463,0.00013698,2]
[335813517,1724505049012,-500.0,0.00013698,2]
[335813518,1724505049021,-500.0,0.00013698,2]
[335813519,1724505049194,-902.98,0.00013698,2]
[335813520,1724505049205,-500.0,0.00013698,2]
[335813521,1724505049214,-500.0,0.00013698,2]
[335813522,1724505049224,-984.79,0.00013698,2]
[335813523,1724505049234,-817.09,0.00013698,2]
[335813524,1724505049243,-4628.58,0.00013698,2]
[335813525,1724505049253,-500.0,0.00013698,2]
[335813526,1724505049263,-716.5607785,0.00013698,2]
[335813527,1724505050122,-279.4292215,0.00013698,2]
[335813528,1724505050132,-313.57873383,0.00013698,2]
[335813529,1724505050144,-275.31126617,0.00013698,2]
[335813530,1724505050153,-910.66,0.00013698,2]
[335813531,1724505050162,-1299.25250745,0.00013698,2]
[335813532,1724505050173,-1185.56749255,0.00013698,2]
[335813533,1724505050183,-511.23922017,0.00013698,2]
[335813534,1724505050193,-719.46,0.00013698,2]
[335813535,1724505050203,-5556.42,0.00013698,2]
[335813536,1724505050213,-500.0,0.00013698,2]
[335813537,1724505050223,-1237.93,0.00013698,2]
[335813538,1724505050232,-1306.54,0.00013698,2]
[335813539,1724505050242,-500.0,0.00013698,2]
[335813540,1724505050252,-500.0,0.00013698,2]
[335813541,1724505050261,-1094.72,0.00013698,2]
[335813542,1724505050271,-708.31,0.00013698,2]
[335813543,1724505050280,-500.0,0.00013698,2]
[335813544,1724505050289,-500.0,0.00013698,2]
[335813545,1724505050299,-3170.26,0.00013698,2]
[335813546,1724505050309,-1031.55,0.00013698,2]
[335813547,1724505050318,-500.0,0.00013698,2]
[335813548,1724505050327,-500.80362181,0.00013698,2]
[335813549,1724505050337,-564.65068328,0.00013698,2]
[335813550,1724505050346,-500.0,0.00013698,2]
[335813551,1724505050356,-504.9817126,0.00013698,2]
[335813552,1724505050365,-213.26385743,0.00013698,2]
[335813553,1724505050374,-500.68041564,0.00013698,2]
[335813554,1724505050383,-690.27,0.00013698,2]
[335813555,1724505050393,-500.55269522,0.00013698,2]
[335813556,1724505050402,-9825.39,0.00013698,2]
[335813557,1724505050412,-500.0,0.00013698,2]
[335813558,1724505050422,-500.0,0.00013698,2]
[335813559,1724505050431,-500.0,0.00013698,2]
[335813560,1724505050440,-500.0,0.00013698,2]
[335813561,1724505050450,-500.0,0.00013698,2]
[335813562,1724505050459,-500.0,0.00013698,2]
[335813563,1724505050468,-1457.66,0.00013698,2]
[335813564,1724505050477,-500.0,0.00013698,2]
[335813565,1724505050487,-3010.9,0.00013698,2]
[335813566,1724505050496,-500.0,0.00013698,2]
[335813567,1724505050505,-500.0,0.00013698,2]
[335813568,1724505050515,-389.94915928,0.00013698,2]
[335813569,1724505050526,-2818.22,0.00013698,2]
[335813570,1724505050536,-2945.52,0.00013698,2]
[335813571,1724505050545,-1932.67,0.00013698,2]
[335813572,1724505050555,-1500.75,0.00013698,2]
[335813573,1724505050564,-500.0,0.00013698,2]
[335813574,1724505050573,-4869.48,0.00013698,2]
[335813575,1724505050582,-706.35,0.00013698,2]
[335813576,1724505050590,-500.0,0.00013698,2]
[335813577,1724505050599,-500.0,0.00013698,2]
[335813578,1724505050608,-500.0,0.00013698,2]
[335813579,1724505050618,-500.0,0.00013698,2]
[335813580,1724505050627,-500.0,0.00013698,2]
[335813581,1724505050636,-500.0,0.00013698,2]
[335813582,1724505050646,-500.0,0.00013698,2]
[335813583,1724505050655,-501.11720891,0.00013698,2]
[335813584,1724505050664,-1576.3,0.00013698,2]
[335813585,1724505050674,-622.11,0.00013698,2]
[335813586,1724505050683,-1111.16,0.00013698,2]
[335813587,1724505050693,-500.0,0.00013698,2]
[335813588,1724505050702,-500.0,0.00013698,2]
[335813589,1724505050712,-2951.09,0.00013698,2]
[335813590,1724505050720,-500.0,0.00013698,2]
[335813591,1724505050730,-500.0,0.00013698,2]
[335813592,1724505050739,-822.77,0.00013698,2]
[335813593,1724505050747,-500.0,0.00013698,2]
[335813594,1724505050757,-1450.81,0.00013698,2]
[335813595,1724505050766,-636.55,0.00013698,2]
[335813596,1724505050774,-1255.74,0.00013698,2]
[335813597,1724505050784,-500.0,0.00013698,2]
[335813598,1724505050793,-500.0,0.00013698,2]
[335813599,1724505050802,-1713.94,0.00013698,2]
[335813600,1724505050813,-2173.9,0.00013698,2]
[335813601,1724505050824,-500.0,0.00013698,2]
[335813602,1724505050834,-914.12,0.00013698,2]
[335813603,1724505050843,-500.0,0.00013698,2]
[335813604,1724505050853,-500.0,0.00013698,2]
[335813605,1724505050863,-500.0,0.00013698,2]
[335813606,1724505050872,-3509.98,0.00013698,2]
[335813607,1724505050881,-540.37,0.00013698,2]
[335813608,1724505050890,-777.54,0.00013698,2]
[335813609,1724505050899,-500.0,0.00013698,2]
[335813610,1724505050909,-1926.72,0.00013698,2]
[335813611,1724505050918,-500.0,0.00013698,2]
[335813612,1724505050927,-500.0,0.00013698,2]
[335813613,1724505050936,-500.0,0.00013698,2]
[335813614,1724505050945,-75.33995621,0.00013698,2]
[335813616,1724505079661,2144.86567437,0.000269,120]
[335813617,1724505114999,227.67,0.00010959,2]
[335813618,1724505125496,189.72,0.00010959,2]
[335813619,1724505136051,158.1,0.00010959,2]
[335813621,1724505146559,790.54,0.00010959,2]
[335813622,1724505184751,2113.41805073,0.00010959,2]
[335813623,1724505190942,3612.98227201,0.00010959,2]
[335813624,1724505192902,4619.11395466,0.00010959,2]
[335813625,1724505199130,218.66051313,0.00010959,2]
[335813627,1724505250774,3627.31,0.00025,60]
[335813628,1724505263277,154.77557542,0.00010959,2]
[335813629,1724505269763,2109.00181851,0.00010959,2]
[335813630,1724505279528,1672.36760276,0.00010959,2]
[335813631,1724505365283,604.0,0.00027,120]
[335813633,1724505388528,1671.98997101,0.00010959,2]
[335813634,1724505397092,396.01822435,0.00010959,2]
[335813636,1724505499915,228.0,0.00026,120]
[335813638,1724505517086,396.01822435,0.00010959,2]
[335813640,1724505657762,244.01680632,0.00012111,2]
[335813641,1724505748177,250.0,0.00011696,2]
[335813642,1724505748401,250.0,0.00011728,2]
[335813643,1724505748640,250.0,0.0001176,2]
[335813644,1724505748863,250.0,0.00011793,2]
[335813645,1724505749584,250.0,0.00011825,2]
[335813646,1724505749796,250.0,0.00011857,2]
[335813647,1724505749867,250.0,0.00011889,2]
[335813648,1724505749937,250.0,0.00011921,2]
[335813649,1724505749999,250.0,0.00011953,2]
[335813650,1724505750169,250.0,0.00011985,2]
[335813651,1724505750388,250.0,0.00012017,2]
[335813652,1724505750925,250.0,0.00012049,2]
[335813653,1724505751161,250.0,0.00012081,2]
[335813656,1724505840207,8845.25511796,0.00011999,2]
[335813657,1724505862930,3620.21503602,0.00012081,2]
[335813658,1724505888095,1453.31513024,0.00011999,2]
[335813659,1724505895891,404.65460675,0.00011999,2]
[335813661,1724505911222,218.62299037,0.00011999,2]
[335813662,1724505913338,4721.43026893,0.00011999,2]
[335813664,1724505922188,6612.12591735,0.00011999,2]
[335813665,1724505950359,939.08236877,0.00011999,2]
[335813667,1724505958854,2113.01506767,0.00011999,2]
[335813668,1724505973928,2269.1336339,0.00011999,2]
[335813669,1724506004338,1309.31158726,0.00011999,2]
[335813670,1724506013330,811.33770474,0.00011999,2]
[335813672,1724506030159,-250.0,0.00012113,2]
[335813673,1724506030185,-79.27910504,0.00012119,2]
[335813674,1724506030298,2143.02877073,0.00011999,2]
[335813675,1724506037145,2712.87069354,0.00011999,2]
[335813676,1724506037302,-220.72089496,0.00012119,2]
[335813677,1724506037325,-41.0014967,0.00012119,2]
[335813678,1724506041163,-258.9985033,0.00012119,2]
[335813679,1724506041185,-670.5747256,0.0001212,2]
[335813680,1724506041354,1043.44440635,0.00011999,2]
[335813681,1724506041383,4721.43026893,0.00011999,2]
[335813684,1724506051505,337.932,0.00025,60]
[335813689,1724506077846,1726.67879249,0.00011999,2]
[335813695,1724506103355,12614.19233373,0.00011999,2]
[335813696,1724506103383,8732.43272194,0.00011999,2]
[335813703,1724506140362,372.5496429,0.00011999,2]
[335813704,1724506143630,155.24629628,0.00011999,2]
[335813705,1724506145187,-210.105085,0.0001212,2]
[335813706,1724506145210,-780.13119624,0.0001212,2]
[335813707,1724506145232,-250.0,0.00012145,2]
[335813708,1724506145253,-300.0,0.00012162,2]
[335813709,1724506145274,-157.11116113,0.00012163,2]
[335813710,1724506145294,-320.30409158,0.00012163,2]
[335813711,1724506145314,-1613.91660303,0.00012163,2]
[335813712,1724506145333,-156.87056893,0.00012163,2]
[335813713,1724506145358,-246.66928391,0.00012163,2]
[335813714,1724506145379,-250.0,0.00012178,2]
[335813715,1724506145398,-192.0965735,0.00012193,2]
[335813716,1724506145419,-250.0,0.0001221,2]
[335813717,1724506145440,-250.0,0.00012242,2]
[335813718,1724506145465,-250.0,0.00012274,2]
[335813719,1724506145487,-250.0,0.00012306,2]
[335813720,1724506147557,155.32504483,0.00011999,2]
[335813721,1724506147589,308.77232842,0.0001212,2]
[335813722,1724506148354,147.67037992,0.00011999,2]
[335813723,1724506148376,185.77386313,0.00011999,2]
[335813728,1724506172106,-15080.96538746,0.00012328,2]
[335813729,1724506176677,65.58829961,0.00012163,2]
[335813730,1724506176700,198.02810234,0.00012163,2]
[335813731,1724506176721,37.53176786,0.00012163,2]
[335813733,1724506183234,223.87298845,0.00012163,2]
[335813734,1724506183262,180.67882945,0.00012163,2]
[335813735,1724506185589,86.9551527,0.00012163,2]
[335813736,1724506185611,103.13791822,0.00012163,2]
[335813737,1724506186706,82.97228912,0.00012163,2]
[335813738,1724506186728,197.97631026,0.00012163,2]
[335813783,1724506231754,-157.14223377,0.00012163,2]
[335813785,1724506231765,-12746.97092502,0.00012163,2]
[335813786,1724506231777,-435.15306822,0.00012163,2]
[335813790,1724506231813,-3204.35674031,0.00012163,2]
[335813933,1724506237827,-2299.52802457,0.00012163,2]
[335813934,1724506237886,-3319.99336671,0.00012163,2]
[335813935,1724506237896,-688.74575077,0.00012163,2]
[335813936,1724506237907,-88.94210634,0.00012328,2]
[335813937,1724506237917,-300.0,0.00012355,2]
[335813938,1724506237927,-2167.30721455,0.00012356,2]
[335813939,1724506237936,-2167.30721455,0.00012356,2]
[335813940,1724506237946,-226.77809033,0.00012516,2]
[335813941,1724506237956,-7014.13255051,0.00012516,2]
[335813942,1724506237966,-1547.87289514,0.00012516,2]
[335813943,1724506237977,-2129.03639097,0.00012516,2]
[335813944,1724506237988,-680.49291903,0.00012516,2]
[335813945,1724506237997,-9664.212107,0.00012551,2]
[335813946,1724506238007,-166.73008161,0.00012551,4]
[335813947,1724506238017,-1766.63770101,0.00012551,2]
[335813948,1724506238026,-998.56617708,0.00012628,2]
[335813949,1724506238036,-309.52024362,0.00012629,2]
[335813950,1724506238045,-153.0,0.000127,2]
[335813951,1724506238054,-153.0,0.000127,2]
[335813952,1724506238064,-153.0,0.000127,2]
[335813953,1724506238073,-168.38141783,0.00012779,2]
[335813954,1724506238083,-817.95411776,0.00012779,2]
[335813955,1724506238093,-154.99369496,0.00012779,2]
[335813956,1724506238102,-24262.80567404,0.00012875,2]
[335813957,1724506238114,-88670.91230796,0.00012875,2]
[335813958,1724506238125,-355.162656,0.00012877,2]
[335813959,1724506238135,-409.212231,0.00012877,2]
[335813960,1724506238145,-153.0,0.00012877,2]
[335813961,1724506238156,-207.7300879,0.00012877,2]
[335813962,1724506238168,-207.7300879,0.00012877,2]
[335813963,1724506238177,-207.7300879,0.00012877,2]
[335813964,1724506238187,-153.0,0.00012877,2]
[335813965,1724506238196,-153.0,0.00012877,2]
[335813966,1724506238206,-153.0,0.00012877,2]
[335813967,1724506238217,-207.7300879,0.00012877,2]
[335813968,1724506238227,-207.7300879,0.00012877,2]
[335813969,1724506238239,-207.7300879,0.00012877,2]
[335813970,1724506238250,-207.7300879,0.00012877,2]
[335813971,1724506238259,-207.7300879,0.00012877,2]
[335813972,1724506238269,-409.2733729,0.00012877,2]
[335813973,1724506238282,-207.7300879,0.00012877,2]
[335813974,1724506238292,-409.2733729,0.00012877,2]
[335813975,1724506238303,-409.2733729,0.00012877,2]
[335813976,1724506238315,-698.10408,0.00012877,2]
[335813977,1724506238326,-408.0849497,0.00012877,2]
[335813978,1724506238339,-409.2733729,0.00012878,2]
[335813979,1724506238350,-14402.14626363,0.00012885,2]
[335813980,1724506238361,-301.69894114,0.00012886,2]
[335813981,1724506238377,-568.04311647,0.00012898,2]
[335813982,1724506238387,-154.79101359,0.00012898,2]